[Event "Titled Tuesday Blitz August 16 Early 2022"]
[White "Winkels, Marcel"]
[Black "Sanchez Alvares, Kelvin Antonio"]
[WhiteFideId "1003887"]
[BlackFideId "3906680"]
[WhiteElo "1900"]
[BlackElo "2189"]
[Result "0-1"]
[Round "10"]
[TimeControl "180+2"]
[Date "2022.08.18"]
[WhiteClock "0:00:00"]
[BlackClock "0:00:00"]

1. e4 {[%clk 0:00:00]}  c5 {[%clk 0:00:00]} 2. Nf3 {[%clk 0:00:00]}  d6 {[%clk 0:00:00]} 3. Bb5+ {[%clk 0:00:00]}  Nc6 {[%clk 0:00:00]} 4. O-O {[%clk 0:00:00]}  e5 {[%clk 0:00:00]} 5. c4 {[%clk 0:00:00]}  f5 {[%clk 0:00:00]} 6. d3 {[%clk 0:00:00]}  Be7 {[%clk 0:00:00]} 7. Nc3 {[%clk 0:00:00]}  Nf6 {[%clk 0:00:00]} 8. Bg5 {[%clk 0:00:00]}  O-O {[%clk 0:00:00]} 9. Bxf6 {[%clk 0:00:00]}  Bxf6 {[%clk 0:00:00]} 10. Nd5 {[%clk 0:00:00]}  f4 {[%clk 0:00:00]} 11. Kh1 {[%clk 0:00:00]}  Bg4 {[%clk 0:00:00]} 12. Qa4 {[%clk 0:00:00]}  Ne7 {[%clk 0:00:00]} 13. Qd1 {[%clk 0:00:00]}  Ng6 {[%clk 0:00:00]} 14. Ba4 {[%clk 0:00:00]}  Nh4 {[%clk 0:00:00]} 15. a3 {[%clk 0:00:00]}  Qc8 {[%clk 0:00:00]} 16. Qe2 {[%clk 0:00:00]}  Bxf3 {[%clk 0:00:00]} 17. gxf3 {[%clk 0:00:00]}  Qh3 {[%clk 0:00:00]} 18. Rg1 {[%clk 0:00:00]}  Qxf3+ {[%clk 0:00:00]} 19. Qxf3 {[%clk 0:00:00]}  Nxf3 {[%clk 0:00:00]} 20. Rg4 {[%clk 0:00:00]}  Kh8 {[%clk 0:00:00]} 21. Nxf6 {[%clk 0:00:00]}  Rxf6 {[%clk 0:00:00]} 22. Kg2 {[%clk 0:00:00]}  Nd4 {[%clk 0:00:00]} 23. Rg1 {[%clk 0:00:00]}  g6 {[%clk 0:00:00]} 24. Kf1 {[%clk 0:00:00]}  Kg7 {[%clk 0:00:00]} 25. h4 {[%clk 0:00:00]}  h5 {[%clk 0:00:00]} 26. R4g2 {[%clk 0:00:00]}  Kh6 {[%clk 0:00:00]} 27. Rh1 {[%clk 0:00:00]}  a6 {[%clk 0:00:00]} 28. Rh3 {[%clk 0:00:00]}  b5 {[%clk 0:00:00]} 29. cxb5 {[%clk 0:00:00]}  axb5 {[%clk 0:00:00]} 30. Bd1 {[%clk 0:00:00]}  b4 {[%clk 0:00:00]} 31. a4 {[%clk 0:00:00]}  b3 {[%clk 0:00:00]} 0-1


[Site "https://www.chess.com"]

[Event "Titled Tuesday Blitz August 16 Early 2022"]
[White "Xu, Yi"]
[Black "Ajay, Karthikeyan"]
[WhiteFideId "8605564"]
[BlackFideId "35011685"]
[WhiteElo "2471"]
[BlackElo "2168"]
[Result "1-0"]
[Round "10"]
[TimeControl "180+1"]
[Date "2022.08.16"]
[WhiteClock "0:00:54"]
[BlackClock "0:00:01"]

1. e4 {[%clk 0:03:00]}  c5 {[%clk 0:02:58]} 2. Nf3 {[%clk 0:03:00]}  d6 {[%clk 0:02:55]} 3. d4 {[%clk 0:03:00]}  cxd4 {[%clk 0:02:56]} 4. Nxd4 {[%clk 0:03:01]}  Nf6 {[%clk 0:02:57]} 5. Nc3 {[%clk 0:03:02]}  a6 {[%clk 0:02:57]} 6. f3 {[%clk 0:03:02]}  e5 {[%clk 0:02:56]} 7. Nb3 {[%clk 0:03:03]}  Be7 {[%clk 0:02:57]} 8. Be3 {[%clk 0:03:03]}  Be6 {[%clk 0:02:57]} 9. Qd2 {[%clk 0:03:03]}  Nbd7 {[%clk 0:02:57]} 10. O-O-O {[%clk 0:03:03]}  b5 {[%clk 0:02:55]} 11. g4 {[%clk 0:02:52]}  b4 {[%clk 0:02:37]} 12. Nd5 {[%clk 0:02:49]}  a5 {[%clk 0:02:31]} 13. Nxe7 {[%clk 0:02:42]}  Qxe7 {[%clk 0:02:24]} 14. Qxd6 {[%clk 0:02:43]}  Qxd6 {[%clk 0:02:21]} 15. Rxd6 {[%clk 0:02:42]}  Ke7 {[%clk 0:02:21]} 16. Rd2 {[%clk 0:02:35]}  Rhc8 {[%clk 0:02:13]} 17. Kb1 {[%clk 0:02:30]}  a4 {[%clk 0:02:09]} 18. Nc1 {[%clk 0:02:31]}  Ne8 {[%clk 0:01:41]} 19. Be2 {[%clk 0:02:20]}  Nd6 {[%clk 0:01:36]} 20. Rhd1 {[%clk 0:02:20]}  Nc4 {[%clk 0:01:35]} 21. Bxc4 {[%clk 0:02:20]}  Rxc4 {[%clk 0:01:36]} 22. Nd3 {[%clk 0:02:08]}  b3 {[%clk 0:01:28]} 23. cxb3 {[%clk 0:02:07]}  axb3 {[%clk 0:01:29]} 24. a3 {[%clk 0:01:59]}  f6 {[%clk 0:01:23]} 25. Nb4 {[%clk 0:01:59]}  Rac8 {[%clk 0:00:58]} 26. h3 {[%clk 0:01:17]}  h6 {[%clk 0:00:57]} 27. h4 {[%clk 0:01:14]}  Nc5 {[%clk 0:00:46]} 28. Nd5+ {[%clk 0:01:07]}  Bxd5 {[%clk 0:00:30]} 29. Rxd5 {[%clk 0:01:08]}  Ne6 {[%clk 0:00:17]} 30. Rb5 {[%clk 0:01:05]}  Rc2 {[%clk 0:00:04]} 31. Rxb3 {[%clk 0:01:04]}  Re2 {[%clk 0:00:04]} 32. Ka2 {[%clk 0:01:01]}  Ra8 {[%clk 0:00:03]} 33. h5 {[%clk 0:00:57]}  Kf7 {[%clk 0:00:02]} 34. Rd6 {[%clk 0:00:55]}  Ra6 {[%clk 0:00:01]} 35. Rxa6 {[%clk 0:00:54]} 1-0


[Site "https://www.chess.com"]

[Event "Titled Tuesday Blitz August 16 Early 2022"]
[White "Yurasova, Daria"]
[Black "Miszler, Levente"]
[WhiteFideId "34146919"]
[BlackFideId "763276"]
[WhiteElo "2021"]
[BlackElo "1966"]
[Result "1-0"]
[Round "10"]
[TimeControl "180+2"]
[Date "2022.08.18"]
[WhiteClock "0:00:00"]
[BlackClock "0:00:00"]

1. d4 {[%clk 0:00:00]}  Nf6 {[%clk 0:00:00]} 2. Bg5 {[%clk 0:00:00]}  Ne4 {[%clk 0:00:00]} 3. Bf4 {[%clk 0:00:00]}  d5 {[%clk 0:00:00]} 4. Nd2 {[%clk 0:00:00]}  Bf5 {[%clk 0:00:00]} 5. Ngf3 {[%clk 0:00:00]}  e6 {[%clk 0:00:00]} 6. e3 {[%clk 0:00:00]}  Bd6 {[%clk 0:00:00]} 7. Bg3 {[%clk 0:00:00]}  h6 {[%clk 0:00:00]} 8. Bd3 {[%clk 0:00:00]}  Nxg3 {[%clk 0:00:00]} 9. hxg3 {[%clk 0:00:00]}  Bxd3 {[%clk 0:00:00]} 10. cxd3 {[%clk 0:00:00]}  Nd7 {[%clk 0:00:00]} 11. O-O {[%clk 0:00:00]}  e5 {[%clk 0:00:00]} 12. dxe5 {[%clk 0:00:00]}  Nxe5 {[%clk 0:00:00]} 13. Nxe5 {[%clk 0:00:00]}  Bxe5 {[%clk 0:00:00]} 14. d4 {[%clk 0:00:00]}  Bd6 {[%clk 0:00:00]} 15. Rc1 {[%clk 0:00:00]}  h5 {[%clk 0:00:00]} 16. Nf3 {[%clk 0:00:00]}  h4 {[%clk 0:00:00]} 17. gxh4 {[%clk 0:00:00]}  Rxh4 {[%clk 0:00:00]} 18. Nxh4 {[%clk 0:00:00]}  Qxh4 {[%clk 0:00:00]} 19. g3 {[%clk 0:00:00]}  Bxg3 {[%clk 0:00:00]} 20. Kg2 {[%clk 0:00:00]}  Qh2+ {[%clk 0:00:00]} 21. Kf3 {[%clk 0:00:00]}  Bh4 {[%clk 0:00:00]} 22. Ke2 {[%clk 0:00:00]}  O-O-O {[%clk 0:00:00]} 23. Kd2 {[%clk 0:00:00]}  Re8 {[%clk 0:00:00]} 24. Qf3 {[%clk 0:00:00]}  Bf6 {[%clk 0:00:00]} 25. Kc2 {[%clk 0:00:00]}  Qd6 {[%clk 0:00:00]} 26. Kb1 {[%clk 0:00:00]}  c6 {[%clk 0:00:00]} 27. a3 {[%clk 0:00:00]}  Re4 {[%clk 0:00:00]} 28. Qh5 {[%clk 0:00:00]}  g6 {[%clk 0:00:00]} 29. Qh7 {[%clk 0:00:00]}  Qe6 {[%clk 0:00:00]} 30. Qg8+ {[%clk 0:00:00]}  Kc7 {[%clk 0:00:00]} 31. Qa8 {[%clk 0:00:00]}  a6 {[%clk 0:00:00]} 32. Qa7 {[%clk 0:00:00]}  Be7 {[%clk 0:00:00]} 33. Rc2 {[%clk 0:00:00]}  Qf5 {[%clk 0:00:00]} 34. Rfc1 {[%clk 0:00:00]}  Re6 {[%clk 0:00:00]} 35. Ka1 {[%clk 0:00:00]}  g5 {[%clk 0:00:00]} 36. Rc3 {[%clk 0:00:00]}  g4 {[%clk 0:00:00]} 37. Rb3 {[%clk 0:00:00]}  Kd6 {[%clk 0:00:00]} 38. Qxb7 {[%clk 0:00:00]}  Rf6 {[%clk 0:00:00]} 39. Rxc6# {[%clk 0:00:00]} 1-0


[Site "https://www.chess.com"]

[Event "Titled Tuesday Blitz August 16 Early 2022"]
[White "Agasarov, Benik"]
[Black "Leiva, Gianmarco"]
[WhiteFideId "13314823"]
[BlackFideId "3804399"]
[WhiteElo "2152"]
[BlackElo "2323"]
[Result "1/2-1/2"]
[Round "11"]
[TimeControl "180+1"]
[Date "2022.08.16"]
[WhiteClock "0:00:24"]
[BlackClock "0:00:06"]

1. d4 {[%clk 0:03:00]}  Nf6 {[%clk 0:02:58]} 2. Nf3 {[%clk 0:03:00]}  d5 {[%clk 0:02:55]} 3. c4 {[%clk 0:03:00]}  e6 {[%clk 0:02:56]} 4. Nc3 {[%clk 0:03:00]}  a6 {[%clk 0:02:55]} 5. cxd5 {[%clk 0:02:57]}  exd5 {[%clk 0:02:56]} 6. Bg5 {[%clk 0:02:57]}  Be6 {[%clk 0:02:56]} 7. Qb3 {[%clk 0:02:57]}  Ra7 {[%clk 0:02:56]} 8. e3 {[%clk 0:02:55]}  c6 {[%clk 0:02:55]} 9. Bxf6 {[%clk 0:02:51]}  gxf6 {[%clk 0:02:56]} 10. Be2 {[%clk 0:02:50]}  Bd6 {[%clk 0:02:56]} 11. h3 {[%clk 0:02:47]}  Nd7 {[%clk 0:02:54]} 12. Rc1 {[%clk 0:02:45]}  Rg8 {[%clk 0:02:50]} 13. Kf1 {[%clk 0:02:43]}  Qc7 {[%clk 0:02:39]} 14. Ne1 {[%clk 0:02:35]}  f5 {[%clk 0:02:38]} 15. Nd3 {[%clk 0:02:32]}  f4 {[%clk 0:02:30]} 16. exf4 {[%clk 0:02:27]}  Bxf4 {[%clk 0:02:31]} 17. Re1 {[%clk 0:02:23]}  Bd2 {[%clk 0:02:26]} 18. Rd1 {[%clk 0:02:22]}  Bh6 {[%clk 0:02:24]} 19. Na4 {[%clk 0:02:13]}  b6 {[%clk 0:02:19]} 20. Re1 {[%clk 0:01:58]}  Qd6 {[%clk 0:02:11]} 21. Nxb6 {[%clk 0:01:51]}  Rb7 {[%clk 0:02:08]} 22. Nc8 {[%clk 0:01:47]}  Qb8 {[%clk 0:02:06]} 23. Qxb7 {[%clk 0:01:47]}  Qxb7 {[%clk 0:01:37]} 24. Nd6+ {[%clk 0:01:46]}  Ke7 {[%clk 0:01:37]} 25. Nxb7 {[%clk 0:01:46]}  Rb8 {[%clk 0:01:38]} 26. Ndc5 {[%clk 0:01:36]}  Nxc5 {[%clk 0:01:35]} 27. Nxc5 {[%clk 0:01:35]}  Rxb2 {[%clk 0:01:36]} 28. Nxe6 {[%clk 0:01:32]}  fxe6 {[%clk 0:01:36]} 29. Bg4 {[%clk 0:01:32]}  Bg7 {[%clk 0:01:32]} 30. Rxe6+ {[%clk 0:01:31]}  Kf7 {[%clk 0:01:32]} 31. Re2 {[%clk 0:01:24]}  Rb1+ {[%clk 0:01:32]} 32. Re1 {[%clk 0:01:24]}  Rb2 {[%clk 0:01:33]} 33. a4 {[%clk 0:01:11]}  Bxd4 {[%clk 0:01:33]} 34. Be2 {[%clk 0:01:11]}  c5 {[%clk 0:01:31]} 35. g4 {[%clk 0:01:08]}  Ke6 {[%clk 0:01:20]} 36. Bxa6+ {[%clk 0:01:07]}  Kd6 {[%clk 0:01:20]} 37. Be2 {[%clk 0:01:06]}  c4 {[%clk 0:01:21]} 38. a5 {[%clk 0:01:01]}  Ra2 {[%clk 0:01:20]} 39. Rd1 {[%clk 0:00:57]}  Kc5 {[%clk 0:01:21]} 40. f4 {[%clk 0:00:57]}  Be3 {[%clk 0:01:20]} 41. f5 {[%clk 0:00:53]}  d4 {[%clk 0:01:21]} 42. f6 {[%clk 0:00:52]}  Rxa5 {[%clk 0:01:19]} 43. Bf3 {[%clk 0:00:41]}  Ra2 {[%clk 0:01:12]} 44. Ke1 {[%clk 0:00:32]}  Bf2+ {[%clk 0:01:06]} 45. Kf1 {[%clk 0:00:31]}  Be3 {[%clk 0:01:06]} 46. Be2 {[%clk 0:00:29]}  c3 {[%clk 0:00:28]} 47. f7 {[%clk 0:00:27]}  Bh6 {[%clk 0:00:28]} 48. g5 {[%clk 0:00:26]}  Bg7 {[%clk 0:00:27]} 49. Bd3 {[%clk 0:00:26]}  Ra7 {[%clk 0:00:24]} 50. g6 {[%clk 0:00:25]}  hxg6 {[%clk 0:00:24]} 51. Bxg6 {[%clk 0:00:26]}  Ra6 {[%clk 0:00:25]} 52. Rg1 {[%clk 0:00:26]}  Rf6+ {[%clk 0:00:24]} 53. Ke2 {[%clk 0:00:26]}  Re6+ {[%clk 0:00:17]} 54. Kd3 {[%clk 0:00:26]}  Re3+ {[%clk 0:00:18]} 55. Kc2 {[%clk 0:00:26]}  Re2+ {[%clk 0:00:19]} 56. Kb3 {[%clk 0:00:26]}  Rb2+ {[%clk 0:00:19]} 57. Ka3 {[%clk 0:00:26]}  Bf8 {[%clk 0:00:15]} 58. Bd3 {[%clk 0:00:22]}  Kb6+ {[%clk 0:00:14]} 59. Ka4 {[%clk 0:00:22]}  Rb4+ {[%clk 0:00:08]} 60. Ka3 {[%clk 0:00:23]}  Rb2+ {[%clk 0:00:07]} 61. Ka4 {[%clk 0:00:23]}  Rb4+ {[%clk 0:00:07]} 62. Ka3 {[%clk 0:00:24]}  Rb2+ {[%clk 0:00:06]} 1/2-1/2


[Site "https://www.chess.com"]

[Event "Titled Tuesday Blitz August 16 Early 2022"]
[White "Aldokhin, Ivan"]
[Black "Koridze, Lile"]
[WhiteFideId "24115720"]
[BlackFideId "13612514"]
[WhiteElo "2246"]
[BlackElo "2050"]
[Result "1-0"]
[Round "11"]
[TimeControl "180+2"]
[Date "2022.08.18"]
[WhiteClock "0:00:00"]
[BlackClock "0:00:00"]

1. e4 {[%clk 0:00:00]}  c5 {[%clk 0:00:00]} 2. Nf3 {[%clk 0:00:00]}  d6 {[%clk 0:00:00]} 3. d4 {[%clk 0:00:00]}  cxd4 {[%clk 0:00:00]} 4. Nxd4 {[%clk 0:00:00]}  Nf6 {[%clk 0:00:00]} 5. Nc3 {[%clk 0:00:00]}  Nc6 {[%clk 0:00:00]} 6. Bc4 {[%clk 0:00:00]}  e6 {[%clk 0:00:00]} 7. Bb3 {[%clk 0:00:00]}  a6 {[%clk 0:00:00]} 8. Be3 {[%clk 0:00:00]}  Qc7 {[%clk 0:00:00]} 9. Qe2 {[%clk 0:00:00]}  Be7 {[%clk 0:00:00]} 10. O-O-O {[%clk 0:00:00]}  O-O {[%clk 0:00:00]} 11. g4 {[%clk 0:00:00]}  b5 {[%clk 0:00:00]} 12. g5 {[%clk 0:00:00]}  Nd7 {[%clk 0:00:00]} 13. Nf5 {[%clk 0:00:00]}  exf5 {[%clk 0:00:00]} 14. Nd5 {[%clk 0:00:00]}  Qd8 {[%clk 0:00:00]} 15. exf5 {[%clk 0:00:00]}  Bxg5 {[%clk 0:00:00]} 16. f4 {[%clk 0:00:00]}  Bh6 {[%clk 0:00:00]} 17. Rhg1 {[%clk 0:00:00]}  Kh8 {[%clk 0:00:00]} 18. Rg3 {[%clk 0:00:00]}  Nf6 {[%clk 0:00:00]} 19. Bb6 {[%clk 0:00:00]}  Qd7 {[%clk 0:00:00]} 20. Nxf6 {[%clk 0:00:00]}  gxf6 {[%clk 0:00:00]} 21. Qf3 {[%clk 0:00:00]}  Bb7 {[%clk 0:00:00]} 22. Bd5 {[%clk 0:00:00]}  Rac8 {[%clk 0:00:00]} 23. Rh3 {[%clk 0:00:00]}  Bg7 {[%clk 0:00:00]} 24. Qh5 {[%clk 0:00:00]}  h6 {[%clk 0:00:00]} 25. Rg1 {[%clk 0:00:00]}  Kh7 {[%clk 0:00:00]} 26. Rxg7+ {[%clk 0:00:00]}  Kxg7 {[%clk 0:00:00]} 27. Qxh6+ {[%clk 0:00:00]}  Kg8 {[%clk 0:00:00]} 28. Qh7# {[%clk 0:00:00]} 1-0


[Site "https://www.chess.com"]

[Event "Titled Tuesday Blitz August 16 Early 2022"]
[White "Belov, Vladimir"]
[Black "Tologon tegin, Semetei"]
[WhiteFideId "4132394"]
[BlackFideId "13800574"]
[WhiteElo "2501"]
[BlackElo "2174"]
[Result "1-0"]
[Round "11"]
[TimeControl "180+1"]
[Date "2022.08.16"]
[WhiteClock "0:00:08"]
[BlackClock "0:00:10"]

1. e4 {[%clk 0:03:00]}  b6 {[%clk 0:02:59]} 2. d4 {[%clk 0:03:00]}  Bb7 {[%clk 0:02:59]} 3. Bd3 {[%clk 0:03:01]}  e6 {[%clk 0:02:59]} 4. Nh3 {[%clk 0:02:54]}  Nf6 {[%clk 0:02:55]} 5. Qe2 {[%clk 0:02:51]}  d5 {[%clk 0:02:54]} 6. e5 {[%clk 0:02:48]}  Nfd7 {[%clk 0:02:54]} 7. f4 {[%clk 0:02:40]}  c5 {[%clk 0:02:53]} 8. c3 {[%clk 0:02:40]}  Qc8 {[%clk 0:02:47]} 9. f5 {[%clk 0:02:37]}  Ba6 {[%clk 0:02:05]} 10. fxe6 {[%clk 0:02:32]}  fxe6 {[%clk 0:02:05]} 11. Bxa6 {[%clk 0:01:34]}  Qxa6 {[%clk 0:02:04]} 12. Qg4 {[%clk 0:01:34]}  b5 {[%clk 0:01:42]} 13. O-O {[%clk 0:01:33]}  cxd4 {[%clk 0:01:30]} 14. cxd4 {[%clk 0:01:31]}  Qb6 {[%clk 0:01:31]} 15. Ng5 {[%clk 0:01:16]}  Nxe5 {[%clk 0:01:28]} 16. Qxe6+ {[%clk 0:01:14]}  Qxe6 {[%clk 0:01:27]} 17. Nxe6 {[%clk 0:01:15]}  Nd3 {[%clk 0:01:03]} 18. Nc7+ {[%clk 0:01:13]}  Kd7 {[%clk 0:01:03]} 19. Nxa8 {[%clk 0:01:13]}  Nxc1 {[%clk 0:01:02]} 20. Rxc1 {[%clk 0:01:10]}  Nc6 {[%clk 0:01:02]} 21. Nc3 {[%clk 0:01:03]}  Bd6 {[%clk 0:00:45]} 22. Nxb5 {[%clk 0:00:46]}  Rxa8 {[%clk 0:00:45]} 23. Nxd6 {[%clk 0:00:47]}  Kxd6 {[%clk 0:00:46]} 24. Rd1 {[%clk 0:00:47]}  Rb8 {[%clk 0:00:45]} 25. b3 {[%clk 0:00:47]}  Rb4 {[%clk 0:00:46]} 26. Rac1 {[%clk 0:00:42]}  Rb7 {[%clk 0:00:38]} 27. Rc3 {[%clk 0:00:40]}  Re7 {[%clk 0:00:37]} 28. Kf2 {[%clk 0:00:40]}  Re4 {[%clk 0:00:37]} 29. Re3 {[%clk 0:00:28]}  Rf4+ {[%clk 0:00:35]} 30. Rf3 {[%clk 0:00:28]}  Rh4 {[%clk 0:00:32]} 31. h3 {[%clk 0:00:27]}  Nxd4 {[%clk 0:00:31]} 32. Rf7 {[%clk 0:00:27]}  Ne6 {[%clk 0:00:21]} 33. Rxa7 {[%clk 0:00:26]}  Rf4+ {[%clk 0:00:21]} 34. Ke3 {[%clk 0:00:26]}  Re4+ {[%clk 0:00:20]} 35. Kf2 {[%clk 0:00:25]}  Rf4+ {[%clk 0:00:21]} 36. Kg3 {[%clk 0:00:26]}  Re4 {[%clk 0:00:18]} 37. a4 {[%clk 0:00:24]}  Re3+ {[%clk 0:00:18]} 38. Kf2 {[%clk 0:00:22]}  Rxb3 {[%clk 0:00:18]} 39. a5 {[%clk 0:00:22]}  Nc5 {[%clk 0:00:17]} 40. Rxg7 {[%clk 0:00:21]}  Ra3 {[%clk 0:00:16]} 41. Rxh7 {[%clk 0:00:21]}  Ne4+ {[%clk 0:00:14]} 42. Kg1 {[%clk 0:00:21]}  Rxa5 {[%clk 0:00:15]} 43. h4 {[%clk 0:00:18]}  Nf6 {[%clk 0:00:11]} 44. Rf7 {[%clk 0:00:16]}  Ke6 {[%clk 0:00:11]} 45. Rf8 {[%clk 0:00:16]}  Ra2 {[%clk 0:00:11]} 46. Kh2 {[%clk 0:00:15]}  Ke7 {[%clk 0:00:10]} 47. Rb8 {[%clk 0:00:14]}  Ng4+ {[%clk 0:00:10]} 48. Kg3 {[%clk 0:00:14]}  Ne3 {[%clk 0:00:10]} 49. Re1 {[%clk 0:00:13]}  d4 {[%clk 0:00:10]} 50. Kf3 {[%clk 0:00:13]}  Kf6 {[%clk 0:00:08]} 51. g3 {[%clk 0:00:12]}  Ra3 {[%clk 0:00:07]} 52. Ke4 {[%clk 0:00:11]}  Nc2 {[%clk 0:00:04]} 53. Rf1+ {[%clk 0:00:10]}  Ke7 {[%clk 0:00:03]} 54. g4 {[%clk 0:00:06]}  Re3+ {[%clk 0:00:03]} 55. Kf4 {[%clk 0:00:06]}  d3 {[%clk 0:00:02]} 56. Rb3 {[%clk 0:00:04]}  Rh3 {[%clk 0:00:02]} 57. h5 {[%clk 0:00:02]}  Nd4 {[%clk 0:00:02]} 58. Rxd3 {[%clk 0:00:02]}  Rxd3 {[%clk 0:00:01]} 59. Kg5 {[%clk 0:00:02]}  Ne6+ {[%clk 0:00:02]} 60. Kh4 {[%clk 0:00:02]}  Rd4 {[%clk 0:00:02]} 61. Re1 {[%clk 0:00:02]}  Kf6 {[%clk 0:00:02]} 62. Rf1+ {[%clk 0:00:03]}  Kg7 {[%clk 0:00:02]} 63. Re1 {[%clk 0:00:03]}  Nf4 {[%clk 0:00:02]} 64. Rf1 {[%clk 0:00:04]}  Ng2+ {[%clk 0:00:02]} 65. Kg3 {[%clk 0:00:04]}  Ne3 {[%clk 0:00:03]} 66. Rf4 {[%clk 0:00:03]}  Nd5 {[%clk 0:00:04]} 67. Rxd4 {[%clk 0:00:03]}  Nf6 {[%clk 0:00:05]} 68. Kh4 {[%clk 0:00:03]}  Kf7 {[%clk 0:00:04]} 69. g5 {[%clk 0:00:04]}  Ng8 {[%clk 0:00:05]} 70. Rd7+ {[%clk 0:00:04]}  Ne7 {[%clk 0:00:06]} 71. g6+ {[%clk 0:00:04]}  Ke6 {[%clk 0:00:07]} 72. Rxe7+ {[%clk 0:00:04]}  Kxe7 {[%clk 0:00:07]} 73. Kg5 {[%clk 0:00:05]}  Kf8 {[%clk 0:00:07]} 74. Kf6 {[%clk 0:00:05]}  Kg8 {[%clk 0:00:08]} 75. g7 {[%clk 0:00:05]}  Kh7 {[%clk 0:00:08]} 76. Kf7 {[%clk 0:00:05]}  Kh6 {[%clk 0:00:09]} 77. g8=Q {[%clk 0:00:06]}  Kxh5 {[%clk 0:00:10]} 78. Qg3 {[%clk 0:00:07]}  Kh6 {[%clk 0:00:10]} 79. Qg6# {[%clk 0:00:08]} 1-0


[Site "https://www.chess.com"]

[Event "Titled Tuesday Blitz August 16 Early 2022"]
[White "Blanco Ronquillo, Humberto L."]
[Black "Kuznetsova, Olga"]
[WhiteFideId "3504239"]
[BlackFideId "4191323"]
[WhiteElo "2425"]
[BlackElo "2134"]
[Result "1-0"]
[Round "11"]
[TimeControl "180+2"]
[Date "2022.08.18"]
[WhiteClock "0:00:00"]
[BlackClock "0:00:00"]

1. e4 {[%clk 0:00:00]}  e5 {[%clk 0:00:00]} 2. Nf3 {[%clk 0:00:00]}  Nf6 {[%clk 0:00:00]} 3. Nc3 {[%clk 0:00:00]}  Nc6 {[%clk 0:00:00]} 4. d4 {[%clk 0:00:00]}  exd4 {[%clk 0:00:00]} 5. Nxd4 {[%clk 0:00:00]}  Nxe4 {[%clk 0:00:00]} 6. Nxe4 {[%clk 0:00:00]}  Qe7 {[%clk 0:00:00]} 7. Be2 {[%clk 0:00:00]}  Qxe4 {[%clk 0:00:00]} 8. Nb5 {[%clk 0:00:00]}  Kd8 {[%clk 0:00:00]} 9. O-O {[%clk 0:00:00]}  a6 {[%clk 0:00:00]} 10. Nc3 {[%clk 0:00:00]}  Qg6 {[%clk 0:00:00]} 11. Bf4 {[%clk 0:00:00]}  d6 {[%clk 0:00:00]} 12. Nd5 {[%clk 0:00:00]}  h5 {[%clk 0:00:00]} 13. b4 {[%clk 0:00:00]}  Bg4 {[%clk 0:00:00]} 14. f3 {[%clk 0:00:00]}  Be6 {[%clk 0:00:00]} 15. c4 {[%clk 0:00:00]}  Be7 {[%clk 0:00:00]} 16. b5 {[%clk 0:00:00]}  axb5 {[%clk 0:00:00]} 17. cxb5 {[%clk 0:00:00]}  Bxd5 {[%clk 0:00:00]} 18. Qxd5 {[%clk 0:00:00]}  Na5 {[%clk 0:00:00]} 19. Rac1 {[%clk 0:00:00]}  Qe6 {[%clk 0:00:00]} 20. Qd2 {[%clk 0:00:00]}  Kd7 {[%clk 0:00:00]} 21. Rfe1 {[%clk 0:00:00]}  Qf6 {[%clk 0:00:00]} 22. Be3 {[%clk 0:00:00]}  Rhc8 {[%clk 0:00:00]} 23. Bd4 {[%clk 0:00:00]}  Qg5 {[%clk 0:00:00]} 24. f4 {[%clk 0:00:00]}  Qh6 {[%clk 0:00:00]} 25. Bc3 {[%clk 0:00:00]}  b6 {[%clk 0:00:00]} 26. Bf3 {[%clk 0:00:00]}  Ra7 {[%clk 0:00:00]} 27. Bxa5 {[%clk 0:00:00]}  Rxa5 {[%clk 0:00:00]} 28. Bc6+ {[%clk 0:00:00]}  Kd8 {[%clk 0:00:00]} 29. Re4 {[%clk 0:00:00]}  f5 {[%clk 0:00:00]} 30. Re2 {[%clk 0:00:00]}  Qg6 {[%clk 0:00:00]} 31. Rce1 {[%clk 0:00:00]}  Qf6 {[%clk 0:00:00]} 32. Re6 {[%clk 0:00:00]}  Qf8 {[%clk 0:00:00]} 33. Qe2 {[%clk 0:00:00]}  Ra4 {[%clk 0:00:00]} 34. Rxe7 {[%clk 0:00:00]}  Re4 {[%clk 0:00:00]} 35. Rxe4 {[%clk 0:00:00]}  fxe4 {[%clk 0:00:00]} 36. Qxe4 {[%clk 0:00:00]}  Ra8 {[%clk 0:00:00]} 37. Qe8+ {[%clk 0:00:00]}  Qxe8 {[%clk 0:00:00]} 38. Rxe8# {[%clk 0:00:00]} 1-0


[Site "https://www.chess.com"]

[Event "Titled Tuesday Blitz August 16 Early 2022"]
[White "Buscar, Michael"]
[Black "Fernandez Hernandez, Gerardo"]
[WhiteFideId "2603616"]
[BlackFideId "2207400"]
[WhiteElo "2010"]
[BlackElo "2169"]
[Result "0-1"]
[Round "11"]
[TimeControl "180+2"]
[Date "2022.08.18"]
[WhiteClock "0:00:00"]
[BlackClock "0:00:00"]

1. e4 {[%clk 0:00:00]}  e6 {[%clk 0:00:00]} 2. d4 {[%clk 0:00:00]}  d5 {[%clk 0:00:00]} 3. Nc3 {[%clk 0:00:00]}  Nc6 {[%clk 0:00:00]} 4. e5 {[%clk 0:00:00]}  f6 {[%clk 0:00:00]} 5. f4 {[%clk 0:00:00]}  fxe5 {[%clk 0:00:00]} 6. fxe5 {[%clk 0:00:00]}  Qh4+ {[%clk 0:00:00]} 7. g3 {[%clk 0:00:00]}  Qxd4 {[%clk 0:00:00]} 8. Qxd4 {[%clk 0:00:00]}  Nxd4 {[%clk 0:00:00]} 9. Bd3 {[%clk 0:00:00]}  c5 {[%clk 0:00:00]} 10. Be3 {[%clk 0:00:00]}  Nc6 {[%clk 0:00:00]} 11. Nb5 {[%clk 0:00:00]}  Kd7 {[%clk 0:00:00]} 12. Nf3 {[%clk 0:00:00]}  a6 {[%clk 0:00:00]} 13. Ng5 {[%clk 0:00:00]}  Nh6 {[%clk 0:00:00]} 14. Nd6 {[%clk 0:00:00]}  Nxe5 {[%clk 0:00:00]} 15. Nxc8 {[%clk 0:00:00]}  Nxd3+ {[%clk 0:00:00]} 16. cxd3 {[%clk 0:00:00]}  Rxc8 {[%clk 0:00:00]} 17. O-O {[%clk 0:00:00]}  Be7 {[%clk 0:00:00]} 18. Rae1 {[%clk 0:00:00]}  Nf5 {[%clk 0:00:00]} 19. Nxe6 {[%clk 0:00:00]}  Nxe3 {[%clk 0:00:00]} 20. Rxe3 {[%clk 0:00:00]}  Bf6 {[%clk 0:00:00]} 21. Kg2 {[%clk 0:00:00]}  Rhe8 {[%clk 0:00:00]} 22. Rfe1 {[%clk 0:00:00]}  Kd6 {[%clk 0:00:00]} 23. b3 {[%clk 0:00:00]}  Re7 {[%clk 0:00:00]} 24. Nxg7 {[%clk 0:00:00]}  Rxe3 {[%clk 0:00:00]} 25. Nf5+ {[%clk 0:00:00]}  Kd7 {[%clk 0:00:00]} 26. Rxe3 {[%clk 0:00:00]}  Re8 {[%clk 0:00:00]} 27. Rxe8 {[%clk 0:00:00]}  Kxe8 {[%clk 0:00:00]} 28. Nd6+ {[%clk 0:00:00]}  Kd7 {[%clk 0:00:00]} 29. Nxb7 {[%clk 0:00:00]}  Kc6 {[%clk 0:00:00]} 30. Na5+ {[%clk 0:00:00]}  Kb5 {[%clk 0:00:00]} 31. Nb7 {[%clk 0:00:00]}  Be7 {[%clk 0:00:00]} 32. a3 {[%clk 0:00:00]}  Kb6 {[%clk 0:00:00]} 0-1


[Site "https://www.chess.com"]